fUST/lending_fUST_20241222
["ID","MTS","AMOUNT","RATE_DAILY","PERIOD"]
[346244020,1734805838411,-199.1164294,0.00017999,2]
[346244021,1734805838421,-262.65975313,0.00017999,2]
[346244022,1734805838431,-500.0,0.00017999,2]
[346244023,1734805838440,-21955.28826541,0.000189,2]
[346244024,1734805838465,-4298.4,0.000189,2]
[346244025,1734805838476,-1100.94172315,0.000189,2]
[346244052,1734805840156,-3305.84805776,0.000189,2]
[346244054,1734805840173,-3250.0,0.000189,2]
[346244055,1734805840186,-29272.01090858,0.000189,2]
[346244056,1734805840268,-3799.50864998,0.000189,2]
[346244096,1734805843375,-815.44877714,0.000189,2]
[346244097,1734805843387,-750.648911,0.000189,2]
[346244175,1734805846199,-500.0,0.00017999,2]
[346244176,1734805846208,-500.0,0.00017999,2]
[346244177,1734805846217,-276.28135683,0.00017999,2]
[346244178,1734805846229,-223.71864317,0.00017999,2]
[346244179,1734805846238,-500.0,0.00017999,2]
[346244180,1734805846247,-500.0,0.00017999,2]
[346244181,1734805846257,-500.0,0.00017999,2]
[346244182,1734805846266,-500.0,0.00017999,2]
[346244183,1734805846276,-500.0,0.00017999,2]
[346244184,1734805846285,-385.95344763,0.00017999,2]
[346244185,1734805846294,-500.0,0.00017999,2]
[346244186,1734805846303,-500.0,0.00017999,2]
[346244187,1734805846313,-500.0,0.00017999,2]
[346244188,1734805846322,-500.0,0.00017999,2]
[346244189,1734805846331,-409.64526071,0.00017999,2]
[346244190,1734805846341,-616.48564482,0.00017999,2]
[346244191,1734805846353,-355.45738104,0.00017999,2]
[346244192,1734805846362,-514.68465508,0.00017999,2]
[346244193,1734805846372,-500.0,0.00017999,2]
[346244194,1734805846381,-500.0,0.00017999,2]
[346244195,1734805846391,-500.0,0.00017999,2]
[346244196,1734805846400,-37541.88208599,0.000189,2]
[346244197,1734805846417,-19245.77577601,0.000189,2]
[346244198,1734805846429,-4874.2986,0.000189,2]
[346244199,1734805846445,-371.35201545,0.000189,2]
[346244213,1734805939347,-212.18280674,0.00017999,2]
[346244214,1734805939371,-236.9896333,0.00018809,2]
[346244215,1734805939395,-300.0,0.00018899,2]
[346244216,1734805939420,-300.0,0.00018899,2]
[346244217,1734805939446,-35523.5459876,0.000189,2]
[346244218,1734805939471,-229.0,0.0001896,2]
[346244219,1734805939495,-534.0,0.0001897,2]
[346244220,1734805939519,-2134.0,0.0001897,2]
[346244221,1734805939543,-2451.533,0.0001897,2]
[346244222,1734805939569,-598.9997995,0.00018986,2]
[346244223,1734805939593,-190.515,0.0001899,2]
[346244224,1734805939617,-2019.12965845,0.0001899,2]
[346244225,1734805939640,-168.74036587,0.00018998,2]
[346244226,1734805939666,-8343.92521225,0.00018999,2]
[346244227,1734805939692,-214.38957209,0.00018999,2]
[346244228,1734805939719,-146543.0489642,0.00018999,2]
[346244231,1734806072862,167.637448,0.00013973,2]
[346244268,1734806495399,1000.0,0.00023,120]
[346244274,1734806589729,10000.0,0.0001725,2]
[346244275,1734806598956,10000.0,0.0001725,2]
[346244276,1734806609744,10000.0,0.0001725,2]
[346244277,1734806628396,10000.0,0.0001725,2]
[346244278,1734806635955,10000.0,0.0001725,2]
[346244279,1734806653502,10000.0,0.0001725,2]
[346244280,1734806661777,10000.0,0.0001725,2]
[346244281,1734806669161,10000.0,0.0001725,2]
[346244282,1734806676121,10000.0,0.0001725,2]
[346244283,1734806685172,10000.0,0.0001725,2]
[346244284,1734806693945,10000.0,0.0001725,2]
[346244286,1734806701143,10000.0,0.0001725,2]
[346244287,1734806710699,10000.0,0.0001725,2]
[346244289,1734806721129,10000.0,0.0001725,2]
[346244290,1734806729981,10000.0,0.0001725,2]
[346244298,1734806739791,10000.0,0.0001725,2]
[346244299,1734806749975,10000.0,0.0001725,2]
[346244352,1734807032681,-957.0,0.00017997,2]
[346244354,1734807032691,-300.0,0.00017997,2]
[346244356,1734807032700,-15958.0402335,0.00017998,2]
[346244358,1734807032710,-1000.0,0.00018,18]
[346244360,1734807032719,-237.413,0.0001805,2]
[346244362,1734807032729,-236.9896334,0.00018809,2]
[346244364,1734807032739,-2018.12447772,0.000189,2]
[346244366,1734807032748,-170.72,0.00018954,2]
[346244368,1734807032758,-1857.074,0.00018979,2]
[346244370,1734807032767,-190.099,0.00018998,2]
[346244372,1734807032776,-13130.15569338,0.00018999,2]
[346244531,1734807034291,168.091933,0.00013973,2]
[346244724,1734807038609,-2872.5129192,0.00018999,2]
[346244725,1734807038621,-29361.9092908,0.00018999,2]
[346244726,1734807038630,-7210.04345083,0.00018999,2]
[346244727,1734807038639,-61096.59303797,0.00018999,2]
[346244771,1734807040564,-729.75,0.00018999,2]
[346244781,1734807040646,-2706.80410819,0.00018999,2]
[346244783,1734807040658,-2922.0,0.00018999,2]
[346244786,1734807040669,-93023.63484962,0.00018999,2]
[346244875,1734807043496,-23490.76285695,0.00018999,2]
[346244950,1734807046499,-1743.54790293,0.00018999,2]
[346245023,1734808054747,169.1725,0.00013973,2]
[346245081,1734808233330,-172.410242,0.00017943,2]
[346245083,1734808233340,-627.56174469,0.00018,2]
[346245102,1734808238699,-173.62237655,0.0001782,2]
[346245103,1734808238710,-372.43825531,0.00018,2]
[346245104,1734808238719,-227.519,0.0001805,2]
[346245105,1734808238729,-482.88224244,0.00018715,2]
[346245106,1734808238739,-1000.0,0.00018757,2]
[346245107,1734808238754,-160.0,0.00018855,3]
[346245108,1734808238764,-150.0,0.000189,2]
[346245109,1734808238773,-857.23296978,0.000189,2]
[346245110,1734808238789,-493.65,0.000189,2]
[346245111,1734808238800,-444.318834,0.000189,2]
[346245112,1734808238813,-21.11022615,0.000189,2]
[346245113,1734808238823,-300.0,0.00018978,2]
[346245114,1734808238833,-235.46477385,0.00018978,2]
[346245115,1734808238844,-64.53522615,0.00018978,2]
[346245116,1734808238855,-150.0,0.00018979,2]
[346245117,1734808238865,-1733.857,0.00018979,2]
[346245118,1734808238874,-1062.34957225,0.0001899,3]
[346245119,1734808238886,-3217.65194524,0.0001899,3]
[346245120,1734808238895,-152.08,0.00018998,2]
[346245121,1734808238905,-412.46475631,0.00018998,2]
[346245122,1734808238914,-500.0,0.00018998,2]
[346245123,1734808238925,-362.51775035,0.00018998,2]
[346245124,1734808238935,-500.0,0.00018998,2]
[346245125,1734808238947,-561.61931228,0.00018998,2]
[346245126,1734808238957,-596.27618276,0.00018998,2]
[346245127,1734808238968,-500.0,0.00018998,2]
[346245128,1734808238978,-500.0,0.00018998,2]
[346245129,1734808238990,-223.85385057,0.00018998,2]
[346245130,1734808239004,-584.03876748,0.00018998,2]
[346245131,1734808239013,-500.0,0.00018998,2]
[346245132,1734808239023,-500.0,0.00018998,2]
[346245133,1734808239032,-500.0,0.00018998,2]
[346245134,1734808239042,-500.0,0.00018998,2]
[346245135,1734808239053,-500.0,0.00018998,2]
[346245136,1734808239063,-152.59404303,0.00018998,2]
[346245137,1734808239086,-384.46449656,0.00018998,2]
[346245138,1734808239096,-500.0,0.00018998,2]
[346245139,1734808239106,-500.0,0.00018998,2]
[346245140,1734808239115,-5573.57747299,0.00018999,2]
[346245220,1734808241067,-1138.17109359,0.00018999,2]
[346245314,1734808246737,-5000.0,0.00018809,2]
[346245315,1734808246746,-17682.38780715,0.00018999,2]
[346245316,1734808246758,-3605.02172542,0.00018999,2]
[346245317,1734808246767,-3172.97143517,0.00018999,2]
[346245318,1734808246779,-5340.94999999,0.00018999,2]
[346245332,1734808989794,169.685246,0.00013973,2]
[346245391,1734809433507,-1531.51454355,0.000176,2]
[346245392,1734809433519,-340.49883022,0.000176,2]
[346245393,1734809433529,-300.0,0.00017928,2]
[346245394,1734809433538,-22.00969216,0.00017928,2]
[346245395,1734809433557,-277.99030784,0.00017928,2]
[346245396,1734809433566,-3912.05376545,0.00017929,2]
[346245429,1734809438880,-6250.72851847,0.00017929,2]
[346245431,1734809438891,-1591.13700658,0.00017929,2]
[346245449,1734809440991,-13146.0807095,0.00017929,2]
[346245450,1734809441001,-165.03505992,0.0001795,2]
[346245451,1734809441011,-173.36119042,0.00017999,2]
[346245452,1734809441021,-500.0,0.00017999,2]
[346245453,1734809441031,-251.43916372,0.00017999,2]
[346245454,1734809441040,-500.0,0.00017999,2]
[346245455,1734809441050,-500.0,0.00017999,2]
[346245456,1734809441059,-500.0,0.00017999,2]
[346245457,1734809441068,-500.0,0.00017999,2]
[346245458,1734809441077,-500.0,0.00017999,2]
[346245459,1734809441087,-500.0,0.00017999,2]
[346245460,1734809441096,-440.0,0.00017999,2]
[346245461,1734809441105,-500.0,0.00017999,2]
[346245462,1734809441115,-500.0,0.00017999,2]
[346245463,1734809441124,-500.0,0.00017999,2]
[346245464,1734809441134,-281.89539329,0.00017999,2]
[346245465,1734809441143,-500.0,0.00017999,2]
[346245466,1734809441159,-543.62437689,0.00017999,2]
[346245467,1734809441168,-223.905,0.00017999,2]
[346245468,1734809441177,-500.0,0.00017999,2]
[346245469,1734809441186,-12197.06818687,0.00018,2]
[346245470,1734809441195,-1802.51086271,0.00018,2]
[346245471,1734809441206,-2011.87437298,0.00018,2]
[346245472,1734809441215,-93053.64064841,0.00018,2]
[346245473,1734809441227,-53846.43950688,0.00018,2]
[346245474,1734809441237,-227.234,0.0001805,2]
[346245475,1734809441246,-807.39506958,0.0001824,2]
[346245476,1734809441256,-165.03505991,0.00018425,2]
[346245477,1734809441265,-231.951345,0.00018809,2]
[346245478,1734809441275,-666.0,0.00018899,2]
[346245479,1734809441284,-1883.83199706,0.000189,2]
[346245480,1734809441293,-165.03505991,0.000189,2]
[346245481,1734809441302,-1000.0,0.00018906,2]
[346245482,1734809441311,-14674.92688346,0.00018979,2]
[346245579,1734809446941,-8074.2364396,0.00018979,2]
[346245580,1734809446951,-534.0,0.00018979,2]
[346245581,1734809446961,-2138.0,0.00018979,2]
[346245582,1734809446971,-628.143,0.00018979,2]
[346245583,1734809446981,-8749.07651349,0.0001899,5]
[346245584,1734809446993,-1270.73216393,0.0001899,5]
[346245585,1734809447003,-24725.22833333,0.00018999,2]
[346245586,1734809447028,-4309.91484794,0.00018999,2]
[346245587,1734809447040,-1401.74951982,0.00018999,2]
[346245598,1734809854346,169.868555,0.00013973,2]
[346245600,1734810222016,5000.0,0.00017252,2]
[346245622,1734810471328,10301.6471201,0.00016927,2]
[346245663,1734810632079,-300.0,0.00017923,2]
[346245664,1734810632089,-300.0,0.00017923,2]
[346245665,1734810632098,-500.0,0.00017924,2]
[346245666,1734810632108,-500.0,0.00017924,2]
[346245667,1734810632118,-201.56078784,0.00017924,2]
[346245668,1734810632127,-500.0,0.00017924,2]
[346245669,1734810632136,-500.0,0.00017924,2]
[346245670,1734810632146,-132.8331709,0.00017924,2]
[346245688,1734810638010,-20.25230727,0.00017924,2]
[346245690,1734810638020,-267.13058941,0.00017924,2]
[346245691,1734810638032,-232.86941059,0.00017924,2]
[346245692,1734810638043,-500.0,0.00017924,2]
[346245693,1734810638054,-568.10139432,0.00017924,2]
[346245694,1734810638064,-500.0,0.00017924,2]
[346245695,1734810638073,-500.0,0.00017924,2]
[346245696,1734810638083,-500.0,0.00017924,2]
[346245697,1734810638093,-500.0,0.00017924,2]
[346245698,1734810638102,-159.45313675,0.00017924,2]
[346245699,1734810638112,-500.0,0.00017924,2]
[346245700,1734810638121,-500.0,0.00017924,2]
[346245701,1734810638131,-308.97366863,0.00017924,2]
[346245702,1734810638141,-500.0,0.00017924,2]
[346245703,1734810638151,-500.0,0.00017924,2]
[346245704,1734810638160,-500.0,0.00017924,2]
[346245705,1734810638170,-500.0,0.00017924,2]
[346245706,1734810638179,-431.47436984,0.00017924,2]
[346245707,1734810638189,-500.0,0.00017924,2]
[346245708,1734810638198,-500.0,0.00017924,2]
[346245709,1734810638207,-500.0,0.00017924,2]
[346245710,1734810638217,-580.44,0.00017924,2]
[346245711,1734810638227,-500.0,0.00017924,2]
[346245712,1734810638237,-1670.74048752,0.00017924,2]
[346245730,1734810640117,-500.0,0.00017923,2]
[346245732,1734810640126,-181.02951248,0.00017924,2]
[346245735,1734810640136,-984.52048755,0.00017924,2]
[346245737,1734810640147,-377.33893517,0.00017924,2]
[346245846,1734810643058,-601.63635246,0.00017924,2]
[346245852,1734810643106,-804.82261135,0.00017924,2]
[346245854,1734810643118,-1983.55508576,0.00017924,2]
[346246153,1734810645969,-1035.5468875,0.00017924,2]
[346246555,1734810740364,169.932649,0.00013973,2]
[346246557,1734811158318,4254.1164649,0.00016993,2]
[346246558,1734811160238,250.0,0.00016858,2]
[346246560,1734811385001,20868.9993266,0.00016847,2]
[346246561,1734811420869,160.933445,0.00016856,2]
[346246564,1734811586579,1697.8080695,0.00016978,2]
[346246565,1734811657366,169.89907,0.00013973,2]
[346246586,1734811830197,72454.62191329,0.00017,2]
[346246587,1734811830226,737415.64991862,0.00017,2]
[346246588,1734811830256,89429.7865778,0.00017,2]
[346246629,1734811832055,-5075.2,0.00017,2]
[346246635,1734811832108,-481.0025,0.00017,2]
[346246642,1734811832164,-89708.65338842,0.00017,2]
[346246645,1734811832176,-621556.93349935,0.00017,2]
[346246647,1734811832187,-7311.89651589,0.00017,2]
[346246649,1734811832199,-4222.52025468,0.00017,2]
[346246653,1734811832219,-1113.7875,0.00017,2]
[346246709,1734811837967,-566.10980878,0.00017,2]
[346246711,1734811837980,-18151.31832563,0.00017,2]
[346246718,1734811838036,-2408.41595506,0.00017,2]
[346246949,1734811840078,-300.0,0.00017737,2]
[346246951,1734811840087,-10131.65415661,0.00017738,2]
[346246954,1734811840097,-189.59260352,0.00017818,2]
[346246956,1734811840106,-2801.19046421,0.00017819,2]
[346246958,1734811840116,-2801.1904642,0.00017819,2]
[346246960,1734811840125,-2801.1904642,0.0001782,2]
[346246962,1734811840134,-2801.1904642,0.0001782,2]
[346246964,1734811840144,-2801.1904642,0.0001782,2]
[346246966,1734811840153,-500.0,0.0001782,2]
[346246968,1734811840162,-500.0,0.0001782,2]
[346246970,1734811840172,-163.55584165,0.0001782,2]
[346246972,1734811840181,-500.0,0.0001782,2]
[346246974,1734811840190,-500.0,0.0001782,2]
[346246976,1734811840199,-500.0,0.0001782,2]
[346246978,1734811840210,-500.0,0.0001782,2]
[346246979,1734811840219,-500.0,0.0001782,2]
[346246981,1734811840228,-500.0,0.0001782,2]
[346246983,1734811840237,-159.32393815,0.0001782,2]
[346246985,1734811840246,-500.0,0.0001782,2]
[346246987,1734811840255,-500.0,0.0001782,2]
[346246989,1734811840264,-344.5361026,0.0001782,2]
[346246991,1734811840274,-500.0,0.0001782,2]
[346246993,1734811840283,-500.0,0.0001782,2]
[346246995,1734811840291,-500.0,0.0001782,2]
[346246997,1734811840301,-500.0,0.0001782,2]
[346246999,1734811840310,-500.0,0.0001782,2]
[346247001,1734811840319,-500.0,0.0001782,2]
[346247003,1734811840329,-500.0,0.0001782,2]
[346247005,1734811840338,-500.0,0.0001782,2]
[346247007,1734811840347,-500.0,0.0001782,2]
[346247009,1734811840356,-500.0,0.0001782,2]
[346247010,1734811840365,-500.0,0.0001782,2]
[346247012,1734811840374,-500.0,0.0001782,2]
[346247014,1734811840384,-500.0,0.0001782,2]
[346247016,1734811840393,-500.0,0.0001782,2]
[346247018,1734811840402,-500.0,0.0001782,2]
[346247020,1734811840411,-500.0,0.0001782,2]
[346247022,1734811840421,-500.0,0.0001782,2]
[346247024,1734811840431,-500.0,0.0001782,2]
[346247026,1734811840440,-500.0,0.0001782,2]
[346247028,1734811840449,-500.0,0.0001782,2]
[346247030,1734811840458,-500.0,0.0001782,2]
[346247032,1734811840467,-500.0,0.0001782,2]
[346247034,1734811840476,-500.0,0.0001782,2]
[346247040,1734811840697,-500.0,0.0001782,2]
[346247041,1734811840709,-500.0,0.0001782,2]
[346247042,1734811840719,-500.0,0.0001782,2]
[346247043,1734811840729,-500.0,0.0001782,2]
[346247044,1734811840739,-496.41808595,0.0001782,2]
[346247045,1734811840748,-500.0,0.0001782,2]
[346247046,1734811840758,-500.0,0.0001782,2]
[346247047,1734811840767,-500.0,0.0001782,2]
[346247048,1734811840776,-500.0,0.0001782,2]
[346247049,1734811840786,-500.0,0.0001782,2]
[346247050,1734811840795,-500.0,0.0001782,2]
[346247051,1734811840805,-317.11185436,0.0001782,2]
[346247052,1734811840814,-500.0,0.0001782,2]
[346247054,1734811840825,-500.0,0.0001782,2]
[346247056,1734811840837,-500.0,0.0001782,2]
[346247058,1734811840847,-1747.13,0.00017821,2]
[346247060,1734811840857,-500.0,0.00017821,2]
[346247062,1734811840867,-556.26,0.00017821,2]
[346247064,1734811840878,-1774.61,0.00017821,2]
[346247066,1734811840887,-7849.4,0.00017821,2]
[346247068,1734811840896,-1807.13,0.00017821,2]
[346247070,1734811840907,-2860.0,0.00017821,2]
[346247072,1734811840915,-1551.03,0.00017821,2]
[346247074,1734811840928,-151.0,0.000179,2]
[346247076,1734811840938,-151.0,0.000179,2]
[346247078,1734811840947,-151.0,0.000179,2]
[346247080,1734811840957,-151.0,0.000179,2]
[346247082,1734811840966,-6098.53409343,0.00017916,2]
[346247084,1734811840975,-901.25543135,0.00017916,2]
[346247086,1734811840984,-500.0,0.00017916,2]
[346247087,1734811840994,-500.0,0.00017916,2]
[346247088,1734811841003,-500.0,0.00017916,2]
[346247089,1734811841013,-618.27,0.00017916,2]
[346247090,1734811841024,-151.0,0.00017918,2]
[346247091,1734811841033,-273.59820785,0.00017918,2]
[346247092,1734811841043,-1556.23,0.00017919,2]
[346247093,1734811841053,-855.0,0.00017919,2]
[346247094,1734811841062,-1075.73,0.00017919,2]
[346247095,1734811841071,-500.0,0.00017919,2]
[346247097,1734811841080,-500.0,0.00017919,2]
[346247099,1734811841090,-500.0,0.00017919,2]
[346247101,1734811841099,-7405.93,0.00017919,2]
[346247103,1734811841108,-7405.93,0.00017919,2]
[346247105,1734811841118,-7405.93,0.00017919,2]
[346247107,1734811841127,-16920.92874164,0.00017919,2]
[346247110,1734811841140,-2049.03081455,0.00017919,2]
[346247353,1734811843201,-303.99288812,0.00017821,2]
[346247356,1734811843219,-515.38711188,0.00017821,2]
[346247358,1734811843228,-602.51288864,0.00017919,2]
[346247364,1734811843255,-290.46,0.00017919,2]
[346247366,1734811843267,-906.64999995,0.00017919,2]
[346247368,1734811843278,-1114.55,0.00017919,2]
[346247488,1734811846074,-1491.39,0.00017821,2]
[346247489,1734811846084,-5065.97755522,0.00017919,2]
[346247490,1734811846094,-1222.72,0.00017919,2]
[346247491,1734811846103,-500.0,0.00017919,2]
[346247492,1734811846112,-5214.23244478,0.00017919,2]
[346247494,1734811854189,16643.497481,0.00013,2]
[346247495,1734811854223,20000.0,0.00013,2]
[346247496,1734811854255,20000.0,0.00013,2]
[346247497,1734811854288,20000.0,0.00013,2]
[346247498,1734811854320,20000.0,0.00013,2]
[346247499,1734811854354,20000.0,0.00013,2]
[346247500,1734811854387,20000.0,0.00013,2]
[346247501,1734811854419,20000.0,0.00013,2]
[346247502,1734811854453,20000.0,0.00013,2]
[346247503,1734811854486,20000.0,0.00013,2]
[346247504,1734811854519,12652.78787142,0.00013,2]
[346247505,1734811854545,54664.055652,0.00013,2]
[346247506,1734811854578,100000.0,0.00013,2]
[346247507,1734811854604,350000.0,0.00013,2]
[346247508,1734811854629,50000.0,0.00013,2]
[346247509,1734811854656,115000.0,0.00013,2]
[346247526,1734812336703,24900.0,0.00011938,2]
[346247527,1734812565568,716.9289003,0.00011957,2]
[346247534,1734812709551,3950.2522374,0.00011947,2]
[346247537,1734812905600,275.17211664,0.0001,2]
[346247538,1734812911135,1757.31273839,0.00011,2]
[346247542,1734813004316,641.2466971,0.00011986,2]
[346247600,1734813032357,-234.774,0.0001274,2]
[346247601,1734813032367,-191.43045937,0.00012873,2]
[346247602,1734813032376,-191.43045937,0.00012886,2]
[346247603,1734813032385,-191.43045937,0.00012899,2]
[346247604,1734813032394,-1695.44879739,0.000129,2]
[346247605,1734813032403,-300.0,0.00012972,2]
[346247606,1734813032412,-300.0,0.00012972,2]
[346247607,1734813032422,-500.0,0.00012973,2]
[346247608,1734813032431,-500.0,0.00012973,2]
[346247609,1734813032441,-500.0,0.00012973,2]
[346247610,1734813032450,-502.34255917,0.00012973,2]
[346247611,1734813032459,-500.0,0.00012973,2]
[346247612,1734813032468,-500.0,0.00012973,2]
[346247613,1734813032477,-500.94302528,0.00012973,2]
[346247614,1734813032487,-522.59700376,0.00012973,2]
[346247616,1734813032496,-1144.2843535,0.00012999,2]
[346247618,1734813032505,-191.5187455,0.00012999,2]
[346247620,1734813032514,-500.0,0.00012999,2]
[346247621,1734813032523,-500.0,0.00012999,2]
[346247624,1734813032533,-500.0,0.00012999,2]
[346247626,1734813032543,-500.0,0.00012999,2]
[346247628,1734813032552,-500.0,0.00012999,2]
[346247630,1734813032561,-500.0,0.00012999,2]
[346247632,1734813032571,-500.0,0.00012999,2]
[346247634,1734813032581,-500.0,0.00012999,2]
[346247636,1734813032592,-161.11632515,0.00012999,2]
[346247638,1734813032602,-500.0,0.00012999,2]
[346247639,1734813032611,-500.0,0.00012999,2]
[346247641,1734813032621,-500.0,0.00012999,2]
[346247643,1734813032630,-500.0,0.00012999,2]
[346247645,1734813032639,-500.0,0.00012999,2]
[346247647,1734813032648,-500.0,0.00012999,2]
[346247649,1734813032658,-500.0,0.00012999,2]
[346247651,1734813032667,-500.0,0.00012999,2]
[346247653,1734813032676,-500.0,0.00012999,2]
[346247655,1734813032686,-500.0,0.00012999,2]
[346247658,1734813032696,-327.51221216,0.00012999,2]
[346247660,1734813032705,-500.0,0.00012999,2]
[346247662,1734813032715,-500.0,0.00012999,2]
[346247664,1734813032724,-500.0,0.00012999,2]
[346247665,1734813032733,-500.0,0.00012999,2]
[346247668,1734813032743,-500.0,0.00012999,2]
[346247670,1734813032753,-500.0,0.00012999,2]
[346247672,1734813032763,-45900.17818116,0.00013,2]
[346247675,1734813032785,-1141.000008,0.00013,2]
[346247677,1734813032796,-197209.01933502,0.00013,2]
[346247832,1734813038186,-6760.0,0.00013,2]
[346247942,1734813040506,-15589.72936091,0.00013,2]
[346247943,1734813040518,-4806.35,0.00013,2]
[346247944,1734813040534,-443.62335595,0.00013,2]
[346247974,1734813043907,-323.19228954,0.000129,2]
[346247975,1734813043965,-530.0,0.000129,2]
[346247987,1734813046347,-2980.5825357,0.000129,2]
[346247988,1734813046357,-29113.06195391,0.00013,2]
[346248250,1734813140785,1937.3787283,0.00012082,2]
[346248251,1734813286072,260.35577568,0.00019,20]
[346248254,1734814099859,164.356066,0.00019,20]
[346248261,1734814171616,2109.4060584,0.00011929,2]
[346248262,1734814206900,2055.4893125,0.00012024,2]
[346248278,1734814232531,-251.4304054,0.00012693,2]
[346248279,1734814232541,-187.82,0.0001274,2]
[346248280,1734814232550,-300.0,0.00012747,2]
[346248281,1734814232561,-300.0,0.00012747,2]
[346248282,1734814232570,-10568.08608118,0.0001287,2]
[346248283,1734814232581,-1525.90391766,0.000129,2]
[346248284,1734814232589,-447.25912105,0.000129,2]
[346248285,1734814232598,-173.35269329,0.000129,2]
[346248286,1734814232609,-152.0,0.00012998,2]
[346248287,1734814232619,-188.85702247,0.00012999,2]
[346248288,1734814232628,-500.0,0.00012999,2]
[346248289,1734814232638,-184.56848057,0.00012999,2]
[346248290,1734814232647,-500.0,0.00012999,2]
[346248291,1734814232656,-190.86188711,0.00012999,2]
[346248292,1734814232666,-500.0,0.00012999,2]
[346248293,1734814232675,-500.0,0.00012999,2]
[346248294,1734814232684,-170364.96507192,0.00013,2]
[346248295,1734814232710,-3359.00000008,0.00013,2]
[346248296,1734814232721,-12896.21758093,0.00013,2]
[346248301,1734814238395,-2826.24601725,0.00013,2]
[346248321,1734814286934,11942.7598698,0.00011947,2]
[346248324,1734814596534,2000.9184954,0.00012075,2]
[346248328,1734815205639,175.0,0.0001199,2]
[346248385,1734815432893,-300.0,0.00012111,2]
[346248387,1734815432902,-300.0,0.00012111,2]
[346248389,1734815432911,-5975.44707755,0.00012112,2]
[346248453,1734815438683,-1036.31831282,0.00012112,2]
[346248456,1734815438705,-17888.23460963,0.00012112,2]
[346248457,1734815438714,-10568.08608118,0.00012691,2]
[346248458,1734815438727,-500.0,0.00012896,2]
[346248459,1734815438738,-500.0,0.00012896,2]
[346248460,1734815438749,-500.0,0.00012896,2]
[346248461,1734815438758,-500.0,0.00012896,2]
[346248462,1734815438768,-500.0,0.00012896,2]
[346248463,1734815438778,-385.0,0.00012896,2]
[346248464,1734815438787,-500.0,0.00012896,2]
[346248465,1734815438796,-331.93205221,0.00012896,2]
[346248466,1734815438807,-500.0,0.00012896,2]
[346248467,1734815438816,-500.0,0.00012896,2]
[346248468,1734815438826,-500.0,0.00012896,2]
[346248469,1734815438836,-636.36669208,0.00012896,2]
[346248470,1734815438845,-331.04227442,0.00012896,2]
[346248471,1734815438854,-1373.31352584,0.000129,2]
[346248472,1734815438863,-1388.92458403,0.000129,2]
[346248473,1734815438872,-184845.44985701,0.00013,2]
[346248528,1734815443735,-16539.42927549,0.00013,2]
[346248586,1734815446769,-430.29433209,0.00013,2]
[346248993,1734815764040,348.3001216,0.00012085,2]
[346248994,1734815914943,8233.7007686,0.00012014,2]
[346248997,1734816110859,919.7664575,0.00011864,2]
[346249009,1734816527439,250.0,0.00011921,2]
[346249028,1734816632904,-2795.79373831,0.000125,2]
[346249113,1734816638722,-274.599,0.0001235,2]
[346249115,1734816638731,-1025.87326199,0.000125,2]
[346249123,1734816640814,-5460.63738508,0.000125,2]
[346249124,1734816640823,-10568.08608118,0.00012704,2]
[346249125,1734816640833,-188.744,0.0001274,2]
[346249126,1734816640842,-300.0,0.00012836,2]
[346249127,1734816640852,-300.0,0.00012837,2]
[346249128,1734816640861,-421.3626988,0.00012869,2]
[346249129,1734816640869,-1235.98217331,0.000129,2]